Workbook

Sheet Break-Even
C5: Break-Even Analysis
D8: 2007 | E8: =D8+1 -> 2008 | F8: =E8+1 -> 2009 | G8: =F8+1 -> 2010
C10: Sales | D10: 2010000 | E10: 2060000 | F10: 2121800 | G10: 2391800
C12: Less Variable Expenses
C13: Materials | D13: 320000 | E13: 329600 | F13: 339488 | G13: 389088
C14: Labor | D14: 500000 | E14: 515000 | F14: 530450 | G14: 545450
C15: Variable overhead | D15: 125000 | E15: 128750 | F15: 132612.5 | G15: 186362.5
C16: Other | D16: 0 | E16: 0 | F16: 0 | G16: 0
C17: Contribution Margin | D17: =D10-(D13+D14+D15+D16) -> 1065000 | E17: =E10-(E13+E14+E15+E16) -> 1086650 | F17: =F10-(F13+F14+F15+F16) -> 1119249.5 | G17: =G10-(G13+G14+G15+G16) -> 1270899.5
C18: Contribution Margin Ratio | D18: =D17/D10 -> 0.5298507463 | E18: =E17/E10 -> 0.5275 | F18: =F17/F10 -> 0.5275 | G18: =G17/G10 -> 0.5313569278
C20: Fixed Expenses
C21: Salaries and wages | D21: 190000 | E21: 190000 | F21: 190000 | G21: 190000
C22: Employee benefits | D22: 50000 | E22: 51500 | F22: 53045 | G22: 54545
C23: Payroll taxes | D23: 30000 | E23: 30900 | F23: 31827 | G23: 32727
C24: Rent | D24: 5000 | E24: 5150 | F24: 5304.5 | G24: 5454.5
C25: Utilities | D25: 3000 | E25: 3090 | F25: 3182.7 | G25: 3272.7
C26: Repairs and maintenance | D26: 1000 | E26: 1030 | F26: 1060.9 | G26: 1060.9
C27: Insurance | D27: 1000 | E27: 1030 | F27: 1060.9 | G27: 1060.9
C28: Travel | D28: 2133 | E28: 2196.99 | F28: 2262.8997 | G28: 2262.8997
C29: Telephone | D29: 11000 | E29: 11330 | F29: 11669.9 | G29: 12669.9
C30: Postage | D30: 4000 | E30: 4120 | F30: 4243.6 | G30: 4243.6
C31: Office supplies | D31: 6000 | E31: 6180 | F31: 6365.4 | G31: 6365.4
C32: Advertising | D32: 1000 | E32: 1030 | F32: 1060.9 | G32: 1060.9
C33: Marketing/promotion | D33: 3000 | E33: 3090 | F33: 3182.7 | G33: 3182.7
C34: Professional fees | D34: 1000 | E34: 1030 | F34: 1060.9 | G34: 1060.9
C35: Training and development | D35: 1000 | E35: 1030 | F35: 1060.9 | G35: 1060.9
C36: Bank charges | D36: 1000 | E36: 1030 | F36: 1060.9 | G36: 1060.9
C37: Depreciation | D37: 1000 | E37: 1030 | F37: 1060.9 | G37: 1060.9
C38: Interest Expense | D38: 6000 | E38: 6000 | F38: 6000 | G38: 6000
C39: Other | D39: 0 | E39: 0 | F39: 0 | G39: 0
C40: Total Fixed Expenses | D40: =SUM(D21:D38) -> 317133 | E40: =SUM(E21:E38) -> 320766.99 | F40: =SUM(F21:F38) -> 324509.9997 | G40: =SUM(G21:G38) -> 328149.9997
C41: Total Fixed Expenses Ratio | D41: =D40/D10 -> 0.1577776119 | E41: =E40/E10 -> 0.1557121311 | F41: =F40/F10 -> 0.1529408991 | G41: =G40/G10 -> 0.1371979261
C42: Break-Even Sales | D42: =D10*D43 -> 598532.7042 | E42: =E10*E43 -> 608089.0806 | F42: =F10*F43 -> 615184.8336 | G42: =G10*G43 -> 617569.8151
C43: Break-Even % | D43: =(D40/(D40+D44)) -> 0.2977774648 | E43: =(E40/(E40+E44)) -> 0.2951888741 | F43: =(F40/(F40+F44)) -> 0.2899353537 | G43: =(G40/(G40+G44)) -> 0.2582029497
C44: Operating Profit | D44: =(D17-D40) -> 747867 | E44: =(E17-E40) -> 765883.01 | F44: =(F17-F40) -> 794739.5003 | G44: =(G17-G40) -> 942749.5003

Sheet BE Analysis
M2: Break-Even Analysis
K4: Current BE Chart | O4: Current Pie | S4: Projected BE Chart | W4: Projected Pie
L5: Sales $ | M5: =Q23 -> 2010000 | P5: Fixed % | Q5: =Q24/$Q$23 -> 0.1577776119 | T5: Sales $ | U5: =S23 -> 2391800 | X5: Fixed % | Y5: =S24/S23 -> 0.1325917719
L6: Fixed $ | M6: =Q24 -> 317133 | P6: Total Variable % | Q6: =Q26 -> 0.5298507463 | T6: Fixed $ | U6: =S24 -> 317133 | X6: Total Variable % | Y6: =S26 -> 0.3950999247
L7: Total Variable $ | M7: =Q25 -> 1065000 | P7: Profit % | Q7: =Q27/$Q$23 -> 0.3123716418 | T7: Total Variable $ | U7: =S25 -> 945000 | X7: Profit % | Y7: =S27/S23 -> 0.4723083034
Q22: Current | S22: Projected | U22: =IF(Q30>365,"THE B/E POINT IS IN NEXT YEAR","") -> 
P23: Sales $ | Q23: ='Break-Even'!$D$10 -> 2010000 | S23: 2391800 | U23: =IF(Q30>365,"BECAUSE PROFIT IS NEGATIVE.","") -> 
P24: Fixed $ | Q24: ='Break-Even'!$D$40 -> 317133 | S24: 317133 | U24: =IF(S30>365,"THE B/E POINT IS IN NEXT YEAR","") -> 
P25: Total Variable $ | Q25: ='Break-Even'!$D$17 -> 1065000 | S25: 945000 | U25: =IF(S30>365,"BECAUSE PROFIT IS NEGATIVE.","") -> 
P26: Total Variable % | Q26: =Q25/Q23 -> 0.5298507463 | S26: =S25/S23 -> 0.3950999247
P27: Operating Profit $ | Q27: =Q23-(Q24+Q25) -> 627867 | S27: =S23-(S24+S25) -> 1129667
P28: Break-Even % | Q28: =(Q24/(Q24+Q27)) -> 0.3355904762 | S28: =(S24/(S24+S27)) -> 0.219196157
P29: BE Dollars | Q29: =Q23*Q28 -> 674536.8571 | S29: =S23*S28 -> 524273.3684
P30: BE Date | Q30: =Q28*365 -> 1900-05-01T11:46:21.257 | S30: =S28*365 -> 1900-03-20T00:09:30.008
D41: © Copyright, 2002, JaxWorks, All Rights Reserved

Sheet BE Calculations (hidden)
B3: MONTHS | C3: REVENUE | D3: FIXED COSTS | E3: VARIABLE COSTS | F3: TOTAL COSTS | G3: TOTAL PROFIT | H3: X AXIS
B4: 0 | C4: =B4*'BE Analysis'!$Q$29 -> 0 | D4: ='BE Analysis'!$Q$24 -> 317133 | E4: ='BE Analysis'!$Q$24*B4 -> 0 | F4: =E4+D4 -> 317133 | G4: =C4-F4 -> -317133
B5: 1 | C5: ='BE Analysis'!Q23/$B$16 -> 167500 | D5: ='BE Analysis'!$Q$24 -> 317133 | E5: =C5*'BE Analysis'!$Q$26 -> 88750 | F5: 405883 | G5: -238383 | H5: 0
B6: 2 | C6: =$C$5*B6 -> 335000 | D6: ='BE Analysis'!$Q$24 -> 317133 | E6: =C6*'BE Analysis'!$Q$26 -> 177500 | F6: 494633 | G6: -159633 | H6: 10
B7: 3 | C7: 502500 | D7: ='BE Analysis'!$Q$24 -> 317133 | E7: =C7*'BE Analysis'!$Q$26 -> 266250 | F7: 583383 | G7: -80883 | H7: 20
B8: 4 | C8: 670000 | D8: ='BE Analysis'!$Q$24 -> 317133 | E8: =C8*'BE Analysis'!$Q$26 -> 355000 | F8: 672133 | G8: -2133 | H8: 30
B9: 5 | C9: 837500 | D9: ='BE Analysis'!$Q$24 -> 317133 | E9: =C9*'BE Analysis'!$Q$26 -> 443750 | F9: 760883 | G9: 76617 | H9: 40
B10: 6 | C10: 1005000 | D10: ='BE Analysis'!$Q$24 -> 317133 | E10: =C10*'BE Analysis'!$Q$26 -> 532500 | F10: 849633 | G10: 155367 | H10: 50
B11: 7 | C11: 1172500 | D11: ='BE Analysis'!$Q$24 -> 317133 | E11: =C11*'BE Analysis'!$Q$26 -> 621250 | F11: 938383 | G11: 234117 | H11: 60
B12: 8 | C12: 1340000 | D12: ='BE Analysis'!$Q$24 -> 317133 | E12: =C12*'BE Analysis'!$Q$26 -> 710000 | F12: 1027133 | G12: 312867 | H12: 70
B13: 9 | C13: 1507500 | D13: ='BE Analysis'!$Q$24 -> 317133 | E13: =C13*'BE Analysis'!$Q$26 -> 798750 | F13: 1115883 | G13: 391617 | H13: 80
B14: 10 | C14: 1675000 | D14: ='BE Analysis'!$Q$24 -> 317133 | E14: =C14*'BE Analysis'!$Q$26 -> 887500 | F14: 1204633 | G14: 470367 | H14: 90
B15: 11 | C15: 1842500 | D15: ='BE Analysis'!$Q$24 -> 317133 | E15: =C15*'BE Analysis'!$Q$26 -> 976250 | F15: 1293383 | G15: 549117 | H15: 100
B16: 12 | C16: 2010000 | D16: ='BE Analysis'!$Q$24 -> 317133 | E16: =C16*'BE Analysis'!$Q$26 -> 1065000 | F16: 1382133 | G16: 627867 | H16: 110
B18: MONTHS | C18: REVENUE | D18: FIXED COSTS | E18: VARIABLE COSTS | F18: TOTAL COSTS | G18: TOTAL PROFIT | H18: X AXIS
B19: 0 | C19: =B19*'BE Analysis'!$S$29 -> 0 | D19: ='BE Analysis'!$S$24 -> 317133 | E19: ='BE Analysis'!$S$24*B19 -> 0 | F19: =E19+D19 -> 317133 | G19: =C19-F19 -> -317133
B20: 1 | C20: ='BE Analysis'!S23/$B$16 -> 199316.6667 | D20: ='BE Analysis'!$S$24 -> 317133 | E20: =C20*'BE Analysis'!$S$26 -> 78750 | F20: 395883 | G20: -196566.3333 | H20: 0
B21: 2 | C21: =$C$20*B21 -> 398633.3333 | D21: ='BE Analysis'!$S$24 -> 317133 | E21: =C21*'BE Analysis'!$S$26 -> 157500 | F21: 474633 | G21: -75999.66667 | H21: 10
B22: 3 | C22: 597950 | D22: ='BE Analysis'!$S$24 -> 317133 | E22: =C22*'BE Analysis'!$S$26 -> 236250 | F22: 553383 | G22: 44567 | H22: 20
B23: 4 | C23: 797266.6667 | D23: ='BE Analysis'!$S$24 -> 317133 | E23: =C23*'BE Analysis'!$S$26 -> 315000 | F23: 632133 | G23: 165133.6667 | H23: 30
B24: 5 | C24: 996583.3333 | D24: ='BE Analysis'!$S$24 -> 317133 | E24: =C24*'BE Analysis'!$S$26 -> 393750 | F24: 710883 | G24: 285700.3333 | H24: 40
B25: 6 | C25: 1195900 | D25: ='BE Analysis'!$S$24 -> 317133 | E25: =C25*'BE Analysis'!$S$26 -> 472500 | F25: 789633 | G25: 406267 | H25: 50
B26: 7 | C26: 1395216.667 | D26: ='BE Analysis'!$S$24 -> 317133 | E26: =C26*'BE Analysis'!$S$26 -> 551250 | F26: 868383 | G26: 526833.6667 | H26: 60
B27: 8 | C27: 1594533.333 | D27: ='BE Analysis'!$S$24 -> 317133 | E27: =C27*'BE Analysis'!$S$26 -> 630000 | F27: 947133 | G27: 647400.3333 | H27: 70
B28: 9 | C28: 1793850 | D28: ='BE Analysis'!$S$24 -> 317133 | E28: =C28*'BE Analysis'!$S$26 -> 708750 | F28: 1025883 | G28: 767967 | H28: 80
B29: 10 | C29: 1993166.667 | D29: ='BE Analysis'!$S$24 -> 317133 | E29: =C29*'BE Analysis'!$S$26 -> 787500 | F29: 1104633 | G29: 888533.6667 | H29: 90
B30: 11 | C30: 2192483.333 | D30: ='BE Analysis'!$S$24 -> 317133 | E30: =C30*'BE Analysis'!$S$26 -> 866250 | F30: 1183383 | G30: 1009100.333 | H30: 100
B31: 12 | C31: 2391800 | D31: ='BE Analysis'!$S$24 -> 317133 | E31: =C31*'BE Analysis'!$S$26 -> 945000 | F31: 1262133 | G31: 1129667 | H31: 110
